Cogmind - Beta 11 X2 @@@ ROGUE MODE // 2021.02.24 @ 19:36:59 Player: Heavyrisk Result: Self-destructed Performance ------------- Evolutions (5) 2500 Regions Visited (9) 1800 Robots Destroyed (85) 425 Value Destroyed (3499) 3499 Prototype IDs (19) 380 Alien Tech Used (2) 400 Bonus (391) 391 TOTAL SCORE: 9395 Bonus ------- High Alert Combat Kills 91 Met Zhirov 300 Cogmind --------- Core Integrity 798/1000 Matter 300/300 Energy 340/340 System Corruption 0% Temperature Cool (0) Movement Walking (126) Location -5/Zhirov Parts ------- > --- POWER (1) -------- Heavy Antimatter Reactor > --- PROPULSION (6) --- Carbon-fiber Leg Titanium Leg Titanium Leg Improved Titanium Leg Improved Titanium Leg Armored Leg > --- UTILITY (8) ------ Advanced Cooling System High-capacity Storage Unit Improved Sensor Array Improved Signal Interpreter Advanced Targeting Computer Advanced Targeting Computer Particle Accelerator Improved Medium Armor Plating > --- WEAPON (2) ------- Phase Cannon Phase Cannon > --- INVENTORY (20) --- Micro Fission Core Fusion Reactor Armored Medium Treads Improved Titanium Leg Advanced Heat Sink Advanced Heat Sink Advanced Cooling System Advanced Targeting Computer Experimental Utility Shielding Hardened Light Armor Plating Layered Light Armor Plating Force Field Transdimensional Reconstructor Proton Cannon Proton Cannon Cooled Plasma Cannon Autogun Improved Proton Missile Launcher Heavy Missile Launcher Maul Peak State ------------ > --- POWER ------------ Heavy Antimatter Reactor > --- PROPULSION ------- Carbon-fiber Leg Titanium Leg Titanium Leg Improved Titanium Leg Improved Titanium Leg Armored Leg > --- UTILITY ---------- Advanced Cooling System High-capacity Storage Unit Improved Sensor Array Improved Signal Interpreter Advanced Targeting Computer Advanced Targeting Computer Particle Accelerator Improved Medium Armor Plating > --- WEAPON ----------- Phase Cannon Phase Cannon > --- INVENTORY -------- Light Fission Core Micro Fission Core Fusion Reactor Armored Medium Treads Improved Titanium Leg Advanced Heat Sink Advanced Heat Sink Advanced Cooling System Advanced Targeting Computer Hardened Light Armor Plating Layered Light Armor Plating Force Field Transdimensional Reconstructor Proton Cannon Proton Cannon Cooled Plasma Cannon Autogun Improved Proton Missile Launcher Heavy Missile Launcher Maul [Rating: 81] Favorites ----------- Power Heavy Deuterium Engine Engine Heavy Deuterium Engine Power Core Light Nuclear Core Reactor Fusion Reactor Propulsion Carbon-fiber Leg Leg Carbon-fiber Leg Utility Advanced Targeting Computer Device Advanced Cooling System Storage High-capacity Storage Unit Processor Advanced Targeting Computer Protection Reflective Plating Weapon Phase Cannon Energy Gun Medium Laser Energy Cannon Phase Cannon Ballistic Gun Heavy Assault Rifle Ballistic Cannon Advanced Assault Cannon Launcher Heavy Missile Launcher Build | -11 -10 -9 -8 -7 -6 -5 -5 -5 -5 ------- Run | Scr Mat Mat Mat Fac Fac Fac Upp Upp Zhi Slots Evolved 10 | . . 2 2 2 2 2 . . . Power . | . . . . . . . . . . Propulsion 4 | . . 1 1 . 1 1 . . . Utility 6 | . . 1 1 2 1 1 . . . Weapon . | . . . . . . . . . . Parts Attached 118 | 8 4 14 18 26 20 16 8 1 3 Power 7 | 1 . 1 2 1 . 1 . . 1 Engine 4 | 1 . 1 1 1 . . . . . Core 1 | . . . 1 . . . . . . Reactor 2 | . . . . . . 1 . . 1 Propulsion 32 | 2 . 5 6 10 5 3 1 . . Treads . | . . . . . . . . . . Leg 32 | 2 . 5 6 10 5 3 1 . . Wheel . | . . . . . . . . . . Hover . | . . . . . . . . . . Flight . | . . . . . . . . . . Utility 47 | 2 2 4 6 10 11 6 3 1 2 Device 16 | . . 2 2 2 5 1 2 1 1 Storage 6 | 2 1 . 1 1 1 . . . . Processor 5 | . . . 1 3 1 . . . . Hackware . | . . . . . . . . . . Protection 20 | . 1 2 2 4 4 5 1 . 1 Artifact . | . . . . . . . . . . Weapon 32 | 3 2 4 4 5 4 6 4 . . Energy Gun 7 | 2 2 1 1 1 . . . . . Energy Cannon 12 | . . . . 2 3 5 2 . . Ballistic Gun 8 | 1 . 3 3 1 . . . . . Ballistic Cannon 1 | . . . . 1 . . . . . Launcher 4 | . . . . . 1 1 2 . . Special Weapon . | . . . . . . . . . . Impact Weapon . | . . . . . . . . . . Slashing Weapon . | . . . . . . . . . . Piercing Weapon . | . . . . . . . . . . Special Melee Weapon . | . . . . . . . . . . Unidentified Prototypes 9 | . . . 1 2 . 1 . . 5 Parts Lost 14 | . . 1 3 2 . 7 1 . . Power 1 | . . . 1 . . . . . . Propulsion 3 | . . . 1 . . 2 . . . Utility 5 | . . . 1 1 . 2 1 . . Weapon 5 | . . 1 . 1 . 3 . . . Highest Loss Streak 2 | . . 1 2 1 . 2 1 . . Average Slot Usage (%) 99 | . 96 98 100 99 99 98 99 100 98 Engine 5 | . 14 11 7 6 6 3 . . . Reactor 1 | . . . . . . 1 5 5 4 Leg 32 | . 28 33 36 29 33 34 34 35 35 Device 8 | . . 10 9 7 11 5 10 15 15 Storage 6 | . 15 11 9 7 6 5 5 5 5 Processor 14 | . . . 9 15 19 17 17 17 17 Protection 11 | . 9 11 9 14 7 14 11 6 5 Energy Gun 1 | . 14 5 . 1 . . . . . Energy Cannon 8 | . . . . 9 12 10 10 11 11 Ballistic Gun 4 | . 14 15 18 3 . . . . . Naked Turns . | . . . . . . . . . . Heaviest Build 88 | 18 33 37 40 54 76 88 88 83 87 Greatest Support 105 | 20 20 40 50 60 85 102 105 105 105 Greatest Overweight (x) 1 | . 1 1 1 . . . . . . Average Overweight (x) . | . . . . . . . . . . Largest Inventory Capacity 20 | 8 15 15 15 15 20 20 20 20 20 Average Capacity 17 | 7 14 15 15 15 19 20 20 20 20 Most Carried 20 | 5 8 15 15 15 20 20 20 20 20 Average Carried 16 | 2 7 13 14 14 18 19 18 19 19 Final Capacity 20 | 8 15 15 15 15 20 20 20 20 20 Final Carried 20 | 5 8 15 15 14 20 20 20 20 20 Class Distribution -------------------- 89% | Mutant 10% | Scavenger-Mutant Dominant Class ---------------- Mutant | -10/Materials Mutant | -9/Materials Mutant | -8/Materials Mutant | -7/Factory Mutant | -6/Factory Mutant | -5/Factory Mutant | -5/Upper Caves Mutant | -5/Upper Caves Mutant | -5/Zhirov Resources | -11 -10 -9 -8 -7 -6 -5 -5 -5 -5 ----------- Run | Scr Mat Mat Mat Fac Fac Fac Upp Upp Zhi Matter Collected 1809 | 283 63 170 414 326 184 182 127 10 50 Remotely . | . . . . . . . . . . Salvage Created 4550 | 57 174 170 466 1390 352 1062 389 29 461 Parts 180 | 2 17 9 26 51 12 36 21 . 6 Haulers Intercepted . | . . . . . . . . . . Recyclers Shooed 8 | . 2 1 1 3 . 1 . . . Parts Field Recycled . | . . . . . . . . . . Retrieved Matter . | . . . . . . . . . . Parts Self-Destructed 15 | . . . . . . . 11 . 4 Prevented . | . . . . . . . . . . Kills | -11 -10 -9 -8 -7 -6 -5 -5 -5 -5 ------- Run | Scr Mat Mat Mat Fac Fac Fac Upp Upp Zhi Combat Hostiles Destroyed 74 | . 8 3 9 20 5 18 11 . . Guns 27 | . 8 3 9 7 . . . . . Cannons 32 | . . . . 13 3 13 3 . . AOE 14 | . . . . . 2 4 8 . . Classes Destroyed 12 | 1 2 1 1 4 1 2 . . . Worker 1 | . . . . 1 . . . . . Builder 1 | . . . . . . 1 . . . Recycler 6 | 1 . . . 4 1 . . . . Mechanic 1 | . . . . . . 1 . . . Watcher 2 | . . . . 2 . . . . . Swarmer 16 | . 6 . . . 1 . 9 . . Grunt 33 | . 2 . 4 14 1 10 2 . . Brawler 3 | . . . 1 1 . 1 . . . Duelist 1 | . . . . . 1 . . . . Sentry 12 | . . 3 4 1 1 3 . . . Hunter 1 | . . . . 1 . . . . . Programmer 8 | . . . . 3 1 4 . . . Best Kill Streak 5 | 1 3 2 4 5 2 5 5 . . Combat Bots Only 5 | . 3 2 4 4 2 4 5 . . Max Kills in Single Turn 4 | 1 1 1 1 2 2 3 4 . . Gunslinging . | . . . . . . . . . . Exploded 4 | . . . . . 2 2 4 . . Melee . | . . . . . . . . . . Uniques/NPCs Destroyed . | . . . . . . . . . . Combat | -11 -10 -9 -8 -7 -6 -5 -5 -5 -5 -------- Run | Scr Mat Mat Mat Fac Fac Fac Upp Upp Zhi Damage Taken 5075 | . 257 255 781 1188 150 2188 256 . . Core 367 | . 27 16 46 76 . 187 15 . . Absorbed by Shields . | . . . . . . . . . . Core Remaining (%) 94 | 100 89 96 91 89 100 . . . . Volleys Fired 266 | 3 24 12 45 65 21 58 15 4 19 Largest 2 | 2 2 2 2 2 2 2 2 1 1 Hottest 180 | 70 70 70 46 134 95 180 180 90 90 Shots Fired 474 | 6 47 24 90 129 29 104 22 4 19 Gun 213 | 6 47 24 90 46 . . . . . Cannon 254 | . . . . 83 28 101 19 4 19 Launcher 7 | . . . . . 1 3 3 . . Special . | . . . . . . . . . . Kinetic 153 | 3 23 16 90 21 . . . . . Thermal 306 | 3 23 1 . 108 28 101 19 4 19 Explosive 7 | . . . . . 1 3 3 . . Electromagnetic 8 | . 1 7 . . . . . . . Robot Hit Streak 21 | 2 8 7 14 21 11 17 10 9 13 Robot Miss Streak 4 | 1 4 1 3 2 1 2 1 . 2 Penetration Max . | . . . . . . . . . . Secondary Targets 3 | . 2 . 1 . . . . . . Max Gunslinging Chain 1 | . 1 . 1 . . . . . . Shots Hit Robots 349 | 4 28 18 72 103 17 73 13 4 17 Core Hits 175 | 2 14 6 23 45 10 46 16 1 12 Critical Hits 4 | . . . 1 1 . 1 1 . . Critical Kills 3 | . . . . 1 . 1 1 . . Critical Parts Destroyed 1 | . . . 1 . . . . . . Melee Attacks . | . . . . . . . . . . Impact . | . . . . . . . . . . Slashing . | . . . . . . . . . . Piercing . | . . . . . . . . . . Sneak Attacks . | . . . . . . . . . . Combat Hostiles . | . . . . . . . . . . Follow-up Attacks . | . . . . . . . . . . Damage Inflicted 10025 | 45 286 237 1088 2533 996 3159 1028 125 528 Guns 2285 | 45 286 222 1044 688 . . . . . Cannons 5561 | . . . . 1811 387 2343 367 125 528 Explosions 2034 | . . . . . 609 764 661 . . Melee . | . . . . . . . . . . Ramming 145 | . . 15 44 34 . 52 . . . Kinetic 1586 | 20 86 164 1044 272 . . . . . Thermal 6626 | 25 200 12 . 2227 799 2343 367 125 528 Explosive 1622 | . . . . . 197 764 661 . . Electromagnetic 46 | . . 46 . . . . . . . Impact . | . . . . . . . . . . Slashing . | . . . . . . . . . . Piercing . | . . . . . . . . . . Highest Corruption 1 | . . . . 1 . . . . . Average Corruption 1 | . . . . 1 . . . . . Corruption Purged . | . . . . . . . . . . Effects 3 | . . . . 3 . . . . . Message Errors 1 | . . . . 1 . . . . . Energy Discharges 2 | . . . . 2 . . . . . Overload Shots . | . . . . . . . . . . Overflow Damage 257 | . . . 7 67 56 8 30 71 18 Projectiles 165 | . . . . 67 1 8 . 71 18 Explosions 85 | . . . . . 55 . 30 . . Melee 7 | . . . 7 . . . . . . Knockbacks . | . . . . . . . . . . Impact . | . . . . . . . . . . Kinetic . | . . . . . . . . . . Secondary . | . . . . . . . . . . Self-Inflicted Damage . | . . . . . . . . . . Shots . | . . . . . . . . . . Rammed . | . . . . . . . . . . Targets Rammed 19 | . . 4 7 4 . 4 . . . Kicked 19 | . . 4 7 4 . 4 . . . Crushed . | . . . . . . . . . . Highest Temperature 186 | 70 162 37 1 186 . 171 103 . . Average Temperature 56 | 41 58 15 1 63 . 59 47 . . Received Heat Transfer 1647 | . 54 81 351 573 48 486 54 . . Siege Activations . | . . . . . . . . . . Robots Corrupted . | . . . . . . . . . . Combat Hostiles . | . . . . . . . . . . Parts Fried . | . . . . . . . . . . Impact Corruptions 1 | . . . 1 . . . . . . Robots Melted 1 | . . . . . . 1 . . . Combat Hostiles 1 | . . . . . . 1 . . . Parts Melted 10 | 1 . . . 4 . 5 . . . Heat Transferred 8537 | 74 592 37 . 3219 768 2701 444 148 554 Parts Sabotaged . | . . . . . . . . . . Parts Stolen . | . . . . . . . . . . Parts Stripped . | . . . . . . . . . . Power Chain Reactions . | . . . . . . . . . . Missiles Intercepted . | . . . . . . . . . . Alert | -11 -10 -9 -8 -7 -6 -5 -5 -5 -5 ------- Run | Scr Mat Mat Mat Fac Fac Fac Upp Upp Zhi Peak Influence 764 | 5 238 262 289 764 407 469 . . . Initial 366 | . 3 100 110 130 366 100 . . . Average 222 | 2 110 179 202 183 295 280 . . . Maximum Alert Level 3 | . 1 1 1 3 2 2 . . . Low Security (%) 42 | 100 77 45 46 65 8 21 . . . Level 1 51 | . 22 54 53 24 86 72 . . . Level 2 2 | . . . . . 4 6 . . . Level 3 3 | . . . . 9 . . . . . Level 4 . | . . . . . . . . . . Level 5 . | . . . . . . . . . . High Security . | . . . . . . . . . . Max Security . | . . . . . . . . . . Squads Dispatched 20 | . 1 1 2 8 2 6 . . . Investigation 3 | . . . . 2 . 1 . . . Extermination 7 | . . . . 3 2 2 . . . Reinforcement 9 | . 1 1 2 3 . 2 . . . Assault . | . . . . . . . . . . Garrison 1 | . . . . . . 1 . . . Intercept . | . . . . . . . . . . Construction Impeded . | . . . . . . . . . . Haulers Reinforced . | . . . . . . . . . . Stealth | -11 -10 -9 -8 -7 -6 -5 -5 -5 -5 --------- Run | Scr Mat Mat Mat Fac Fac Fac Upp Upp Zhi Distress Signals 5 | . 2 . . 1 . 2 . . . Communications Jammed . | . . . . . . . . . . Distress Signals . | . . . . . . . . . . Times Spotted 134 | . 15 5 25 37 11 30 11 . . Peak Tracking Total 6 | . 5 3 6 6 5 5 5 . . Tactical Retreats 9 | . . . 3 2 3 1 . . . Traps | -11 -10 -9 -8 -7 -6 -5 -5 -5 -5 ------- Run | Scr Mat Mat Mat Fac Fac Fac Upp Upp Zhi Traps Triggered 8 | . 1 1 . 3 1 2 . . . Indirectly . | . . . . . . . . . . Trap Hack Attempts . | . . . . . . . . . . Triggered . | . . . . . . . . . . Disarmed 1 | . . . . 1 . . . . . Reprogrammed . | . . . . . . . . . . Reused . | . . . . . . . . . . Traps Extracted . | . . . . . . . . . . Installed . | . . . . . . . . . . Triggered . | . . . . . . . . . . Machines | -11 -10 -9 -8 -7 -6 -5 -5 -5 -5 ---------- Run | Scr Mat Mat Mat Fac Fac Fac Upp Upp Zhi Machines Disabled 10 | . 1 . . 1 3 3 1 . 1 Max in Single Turn 3 | . 1 . . 1 3 1 1 . 1 Machines Sabotaged . | . . . . . . . . . . Garrisons Compromised . | . . . . . . . . . . Overloaded Fab Kills . | . . . . . . . . . . Fab Network Shutdowns 1 | . . . . 1 . . . . . Hacking | -11 -10 -9 -8 -7 -6 -5 -5 -5 -5 --------- Run | Scr Mat Mat Mat Fac Fac Fac Upp Upp Zhi Machines Accessed 42 | . 2 4 2 14 6 4 1 . 9 Terminals 19 | . 1 4 1 8 3 2 . . . Fabricators 4 | . . . . 2 1 1 . . . Repair Stations 2 | . . . . 2 . . . . . Recycling Units 3 | . 1 . . 1 1 . . . . Scanalyzers 2 | . . . 1 . 1 . . . . Garrison Access 2 | . . . . 1 . 1 . . . Total Hacks 123 | . 4 8 7 38 12 12 1 . 41 Successful 87 | . 3 5 5 21 7 4 1 . 41 Failed 36 | . 1 3 2 17 5 8 . . . Catastrophic 5 | . . 1 . 1 2 1 . . . Database Lockouts . | . . . . . . . . . . Manual 23 | . 2 4 4 7 3 3 . . . Terminals 45 | . 2 8 5 20 6 4 . . . Fabricators 15 | . . . . 8 2 5 . . . Repair Stations 6 | . . . . 6 . . . . . Recycling Units 6 | . 2 . . 2 2 . . . . Scanalyzers 4 | . . . 2 . 2 . . . . Garrison Access 5 | . . . . 2 . 3 . . . Terminal Hacks 59 | . 1 4 2 8 1 1 1 . 41 Record 31 | . . . 1 . . . 1 . 29 Part Schematic 5 | . . . . 1 . . . . 4 Robot Analysis 4 | . . . . . . . . . 4 Prototype ID Bank 5 | . . . . 1 . . . . 4 Branch Access Points 3 | . . 1 . . 1 1 . . . Emergency Access Points 1 | . . 1 . . . . . . . Alert Level 1 | . . . . 1 . . . . . Unreport Threat 1 | . . . . 1 . . . . . Locate Traps 5 | . 1 1 . 3 . . . . . Disarm Traps 1 | . . . . 1 . . . . . Zone Layout 2 | . . 1 1 . . . . . . Fabricator Hacks 7 | . . . . 5 . 2 . . . Load Schematic 3 | . . . . 2 . 1 . . . Build 4 | . . . . 3 . 1 . . . Repair Station Hacks 3 | . . . . 3 . . . . . Scan Component 2 | . . . . 2 . . . . . Repair 1 | . . . . 1 . . . . . Recycling Unit Hacks 4 | . 1 . . 1 2 . . . . Report Inventory 3 | . 1 . . 1 1 . . . . Retrieve Components 1 | . . . . . 1 . . . . Scanalyzer 4 | . . . 2 . 2 . . . . Insert Component 2 | . . . 1 . 1 . . . . Analyze 2 | . . . 1 . 1 . . . . Garrison Access Hacks . | . . . . . . . . . . Unauthorized Hacks 10 | . 1 1 1 4 2 1 . . . Terminals 10 | . 1 1 1 4 2 1 . . . Track 1 | . . . . 1 . . . . . Botnet 9 | . 1 1 1 3 2 1 . . . Fabricators . | . . . . . . . . . . Repair Stations . | . . . . . . . . . . Recycling Units . | . . . . . . . . . . Scanalyzers . | . . . . . . . . . . Garrison Access . | . . . . . . . . . . Data Cores Recovered . | . . . . . . . . . . Used . | . . . . . . . . . . Hacking Detections 32 | . 2 4 2 14 6 4 . . . Full Trace Events 1 | . . . . 1 . . . . . Feedback Events . | . . . . . . . . . . Feedback Blocked . | . . . . . . . . . . Robot Schematics Acquired . | . . . . . . . . . . Robots Built . | . . . . . . . . . . Matter . | . . . . . . . . . . Time . | . . . . . . . . . . Total Robot Build Rating . | . . . . . . . . . . Part Schematics Acquired 7 | . . . 1 1 1 . . . 4 Parts Built 6 | . . . . 4 . 2 . . . Matter 738 | . . . . 570 . 168 . . . Time 369 | . . . . 285 . 84 . . . Total Part Build Rating 26 | . . . . 18 . 8 . . . Parts Repaired 1 | . . . . 1 . . . . . Time 38 | . . . . 38 . . . . . Parts Recycled . | . . . . . . . . . . Recycled Matter . | . . . . . . . . . . Retrieved Matter . | . . . . . . . . . . Retrieved Components 3 | . . . . . 3 . . . . Parts Scanalyzed 2 | . . . 1 . 1 . . . . Part Schematics Acquired 2 | . . . 1 . 1 . . . . Parts Damaged . | . . . . . . . . . . Bothacking | -11 -10 -9 -8 -7 -6 -5 -5 -5 -5 ------------ Run | Scr Mat Mat Mat Fac Fac Fac Upp Upp Zhi Used RIF Installer . | . . . . . . . . . . Robots Hacked . | . . . . . . . . . . Non-combat . | . . . . . . . . . . Combat . | . . . . . . . . . . Robot Hacks Applied . | . . . . . . . . . . Relay Couplers Released . | . . . . . . . . . . Robots Rewired . | . . . . . . . . . . Allies Hacked . | . . . . . . . . . . Hacks Repelled . | . . . . . . . . . . Allies | -11 -10 -9 -8 -7 -6 -5 -5 -5 -5 -------- Run | Scr Mat Mat Mat Fac Fac Fac Upp Upp Zhi Total Allies . | . . . . . . . . . . Largest Group . | . . . . . . . . . . Highest-Rated Group . | . . . . . . . . . . Highest-Rated Ally . | . . . . . . . . . . Total Orders 2 | . . . . . 2 . . . . EXPLORE 2 | . . . . . 2 . . . . Ally Attacks . | . . . . . . . . . . Total Damage . | . . . . . . . . . . Kills . | . . . . . . . . . . Allies Corrupted . | . . . . . . . . . . Allies Melted . | . . . . . . . . . . Intel | -11 -10 -9 -8 -7 -6 -5 -5 -5 -5 ------- Run | Scr Mat Mat Mat Fac Fac Fac Upp Upp Zhi Robot Analysis Total 4 | . . . . . . . . . 4 Derelict Logs Recovered 1 | . . . . . . . . 1 . Drone Launches 2 | . . . . . 2 . . . . Drone Recoveries . | . . . . . . . . . . Exploration | -11 -10 -9 -8 -7 -6 -5 -5 -5 -5 ------------- Run | Scr Mat Mat Mat Fac Fac Fac Upp Upp Zhi Turns Passed 7776 | 92 383 336 721 2205 1343 1342 556 450 348 Spaces Moved 4707 | 60 153 212 400 1259 836 818 388 348 233 Core 6 | 6 . . . . . . . . . Treads . | . . . . . . . . . . Legs 4701 | 54 153 212 400 1259 836 818 388 348 233 Wheels . | . . . . . . . . . . Hover . | . . . . . . . . . . Flight . | . . . . . . . . . . Fastest Speed 50 | 50 120 120 120 120 120 126 126 126 126 Average Speed 124 | 113 184 120 120 120 121 127 126 126 126 Slowest Speed 200 | 120 200 200 200 120 126 128 126 126 126 Overloaded Moves . | . . . . . . . . . . Propulsion Burnouts . | . . . . . . . . . . Robots Hopped . | . . . . . . . . . . Cave-ins Triggered 1 | . . . . . . 1 . . . Exploration Rate (%) 34 | 5 38 20 32 35 23 25 58 45 62 Regions Visited 9 Branch Regions 3 Pre-discovered Areas 3 | . . . . . . . . . 3 Known Exits Taken 4 | . . . . . 1 1 1 1 . Unknown Exits Taken 5 | 1 1 1 1 1 . . . . . Scrap Searched 3 | . . . . . . . . 3 . Spaces Dug 49 | . . . . . 4 9 36 . . Terrain Destroyed 133 | . . . . 7 11 62 53 . . Melee . | . . . . . . . . . . Projectile 38 | . . . . 7 6 19 6 . . AOE 95 | . . . . . 5 43 47 . . Terrain Rammed . | . . . . . . . . . . Walls Destroyed . | . . . . . . . . . . Machines Disabled . | . . . . . . . . . . Actions | -11 -10 -9 -8 -7 -6 -5 -5 -5 -5 --------- Run | Scr Mat Mat Mat Fac Fac Fac Upp Upp Zhi Total 6159 | 75 211 267 559 1834 1141 1017 430 356 269 Wait 868 | . 25 11 52 437 227 101 15 . . Move 4697 | 59 152 211 399 1258 835 816 387 347 233 Hop . | . . . . . . . . . . Pick Up 86 | 4 3 9 15 15 18 11 4 2 5 Fast Attach 33 | 8 1 5 4 7 2 2 . . 4 Attach 27 | . . 2 5 4 4 8 3 . 1 Detach 7 | 1 1 1 . 1 2 1 . . . Swap 60 | . 3 7 9 15 14 6 5 1 . Drop 95 | . 2 5 23 28 18 9 1 2 7 Fire 266 | 3 24 12 45 65 21 58 15 4 19 Melee . | . . . . . . . . . . Ram . | . . . . . . . . . . Kick 19 | . . 4 7 4 . 4 . . . Crush . | . . . . . . . . . . Escape Stasis 1 | . . . . . . 1 . . . Rewire . | . . . . . . . . . . Trap . | . . . . . . . . . . Miscellaneous . | . . . . . . . . . . Route ------- -11/Scrapyard -10/Materials -9/Materials (discovered 3 exits: *Mat / Min x2) -8/Materials -7/Factory -6/Factory (discovered 3 exits: *Fac / Low x2) -5/Factory (discovered 6 exits: *Fac x2 / *Upp x2 / Ext x2) -5/Upper Caves -5/Upper Caves -5/Zhirov (discovered 1 exit: *Pro) History --------- Turn | Location | Event 30 | -11/Scrapyard | Discovered new exit (range 15) 93 | -11/Scrapyard | Entered Materials 315 | -10/Materials | Build established: Mutant 418 | -10/Materials | Discovered new exit (range 16) 476 | -10/Materials | Entered another Materials area 476 | -9/Materials | Evolved 2 slots: Propulsion x1, Utility x1 593 | -9/Materials | Identified exit to Mines 765 | -9/Materials | Discovered new exit (range 8) 812 | -9/Materials | Entered another Materials area 812 | -8/Materials | Evolved 2 slots: Propulsion x1, Utility x1 1406 | -8/Materials | Discovered new exit (range 9) 1533 | -8/Materials | Entered Factory 1533 | -7/Factory | Evolved 2 slots: Utility x2 2174 | -7/Factory | Repaired Carbon-fiber Leg 2686 | -7/Factory | Discovered new exit (range 4) 3119 | -7/Factory | Fabricated Adv. Cooling System (x1) 3161 | -7/Factory | Build established: Scavenger-Mutant 3229 | -7/Factory | Fabricated Adv. Cooling System (x1) 3303 | -7/Factory | Fabricated Carbon-fiber Leg (x2) 3518 | -7/Factory | Local fabrication network quarantined 3528 | -7/Factory | Build established: Mutant 3738 | -7/Factory | Entered another Factory area 3738 | -6/Factory | Evolved 2 slots: Propulsion x1, Utility x1 3968 | -6/Factory | Found Hvy. Reflective Plating 4882 | -6/Factory | Identified exit to Lower Caves 4929 | -6/Factory | Discovered new exit (range 16) 5006 | -6/Factory | Identified exit to Factory 5081 | -6/Factory | Entered another Factory area 5081 | -5/Factory | Evolved 2 slots: Propulsion x1, Utility x1 5268 | -5/Factory | Discovered new exit (range 16) 5371 | -5/Factory | Identified exit to Factory 5511 | -5/Factory | Garrison activated, responded to threat 5885 | -5/Factory | Fabricated Imp. Titanium Leg (x2) 6104 | -5/Factory | Discovered exit to Factory (range 11) 6335 | -5/Factory | Identified exit to Upper Caves 6335 | -5/Factory | Identified exit to Extension 6344 | -5/Factory | Spotted B-75 Beast 6388 | -5/Factory | Crushed by falling debris 6423 | -5/Factory | Entered Upper Caves 6659 | -5/Upper Caves | Found Alien Artifact 6941 | -5/Upper Caves | Discovered new exit (range 8) 6949 | -5/Upper Caves | Identified exit to Upper Caves 6979 | -5/Upper Caves | Entered another Upper Caves area 7204 | -5/Upper Caves | Learned 12 Factory zone layouts 7298 | -5/Upper Caves | Discovered new exit (range 11) 7341 | -5/Upper Caves | Identified exit to Zhirov 7429 | -5/Upper Caves | Entered Zhirov 7429 | -5/Zhirov | Discovered new exit (range 3) 7433 | -5/Zhirov | Identified exit to Proximity Caves 7456 | -5/Zhirov | Met Zhirov 7486 | -5/Zhirov | Learned location of Quarantine (-3) 7486 | -5/Zhirov | Learned location of Testing (-2) 7486 | -5/Zhirov | Learned location of Command (-1) 7516 | -5/Zhirov | Zhirov requested help retrieving the SGEMP Prototype 7552 | -5/Zhirov | Found Alien Artifact 7552 | -5/Zhirov | Identified Integrated Dissipator 7552 | -5/Zhirov | Installed Integrated Dissipator, increased core heat dissipation (+20) 7569 | -5/Zhirov | Identified Dimensional Node Initializer 7572 | -5/Zhirov | Found Dimensional Node Initializer 7576 | -5/Zhirov | Found Alien Artifact 7777 | -5/Zhirov | Self-destructed Last Messages --------------- 07637_ Identified Particle Accelerator. 07648_ Destroyed Hvy. Reflective Plating. 07652_ B-86 Titan destroyed. 07658_ Acquired 50 matter. 07668_ Hvy. Treads fries itself beyond repair. 07668_ Adv. Cooling System fries itself beyond repair. 07674_ Machine disabled. 07676_ C-55 Analyst destroyed. 07681_ Destroyed Flamer. 07683_ 58-WYD(i) destroyed. 07684_ System Guard fries itself beyond repair. 07686_ Antigrav System fries itself beyond repair. 07689_ Destroyed Flamer. 07689_ Destroyed Lgt. Nuclear Core. 07695_ AP-P72(i) destroyed. 07698_ Q508-j destroyed. 07711_ MX-1XC(L) destroyed. 07733_ Dropped Lgt. Fission Core. 07734_ Acquired Exp. Utility Shielding. 07772_ Zhirov uses his terminal. Map ----- +----------------------------------------------------+ | | | | | | | | | | | | | | | | | ????????????????????????????????????????????????? | | ????????????????????????????????????????????????? | | ????????????????????????????????????????????????? | | ????????????????????????????????????????????????? | | ????????????????????????????????????????????????? | | ????????????????????????????????????????????????? | | ????????????????????????????????????????????????? | | ????????????????????????????????????????????????? | | ????????????????????????????????????????????????? | | ???????????????????????????#""#?????????????????? | | ??????????????????????????##""##????????????????? | | ????????????????????###??##""""##???????????????? | | ????????????#########P##?#""""""#??????#####????? | | ????????????#""""""" #?# """" #?????## ###??? | | ????#######?#" " ### ##?#### > ##?? | | ????#"X"X"#?#" 1 ### #?? | | ????#X X#?#" #?? | | ????#" "#### @ #?? | | ????#"" ###### ###?? | | ????#####+#### ### ##????#######???? | | ????????# #?#"" #?# """" #???????????????? | | ????##### #?##" ####S##?#""""""#???????????????? | | ????# + #??#" #??###??##""""##???????????????? | | ????# ###??## #????????##""##????????????????? | | ????#XXX#?????# #?????????#""#?????????????????? | | ????#####?????# #??????????????????????????????? | | ???????######## ########???????????????????????? | | ???????#"X # # """"#???????????????????????? | | ???????#" # # """"#???????????????????????? | | ???????#""! # # """#???????????????????????? | | ???????#"" + + ""#???????????????????????? | | ???????#"" ""# # """#???????????????????????? | | ???????#"""""# #!""""#???????????????????????? | | ???????#"""""# #X""""#???????????????????????? | | ???????########++########???????????????????????? | | ???????#" """"#???????????????????????? | | ???????#"" "#???????????????????????? | | ???????#" " %" " " "#???????????????????????? | | ???????# %%%"% "! "*="#???????????????????????? | | ???????# %"!!" "* "=="#???????????????????????? | | ???????##################???????????????????????? | | ????????????????????????????????????????????????? | +----------------------------------------------------+ Best States ------------- Heat Dissipation 98 Coolant Potential 50 Energy Generation 25 Energy Capacity 340 Matter Stores 300 Matter Capacity 300 Sight Range 16 Robot Scan Range 15 Terrain Scan Density 10 Jamming Range 8 Armor Coverage 750 Resistance: KI 20 Resistance: TH 25 Weapon Shielding 66 Evasion (%) 55 Targeting Accuracy 16 Particle Charging 30 Item Schematics ----------------- Carbon-fiber Leg | -8/Materials | Scanalyzed Imp. Particle Charger | -7/Factory | Hacked Imp. Titanium Leg | -6/Factory | Scanalyzed Assault Drone Bay | -5/Zhirov | Free Exp. Heat Sink | -5/Zhirov | Free Exp. Optical Array | -5/Zhirov | Free Imp. Arc Thrower | -5/Zhirov | Free Robot Schematics ------------------ None Fabricated ------------ Adv. Cooling System | x1 | -7/Factory | Preloaded Adv. Cooling System | x1 | -7/Factory | Preloaded Carbon-fiber Leg | x2 | -7/Factory Imp. Titanium Leg | x2 | -5/Factory Alien Tech Used ----------------- Integrated Dissipator Dimensional Node Initializer Achievements -------------- None Challenges ------------ None Game ------ Seed ChargeShadingGravjet Manual? 0 Play Time 02:03:32 Cumulative 185.4 hours Start 2021.02.23 @ 19:00:54 End 2021.02.24 @ 19:36:59 Sessions 3 Manual Loads 0 Difficulty Rogue Special Mode None Game No. 146 Rogue 146 Adventurer 0 Explorer 0 Win Type - Total 1 Types 1/0/0/0/0/0/0/0/0 Lore% 55 Gallery% 62 Achievement% 44 Wizard Run 0 Options --------- ASCII 0 Keyboard 0 Movement Arrows Keybinds 0 Fullscreen 1 Font 18/SmallcapsGlow Map View 76x50 Tactical HUD 1 Map Filters NONE Filters NONE Steam 1 RUN: 8c0e7af0-187d-48c3-abc0-3de6a2c5f705